fUST/lending_fUST_20260302
["ID","MTS","AMOUNT","RATE_DAILY","PERIOD"]
[407126762,1772463038285,-256.044109,0.00013168,2]
[407126764,1772463038295,-500.0,0.00013168,2]
[407126766,1772463038305,-500.0,0.00013168,2]
[407126768,1772463038324,-500.0,0.00013168,2]
[407126770,1772463038337,-500.0,0.00013168,2]
[407126772,1772463038347,-618.92294447,0.00013168,2]
[407126774,1772463038357,-500.0,0.00013168,2]
[407126776,1772463038367,-500.0,0.00013168,2]
[407126778,1772463038376,-264.70308331,0.00013168,2]
[407126786,1772463038457,-235.29691669,0.00013168,2]
[407126788,1772463038468,-500.0,0.00013168,2]
[407126790,1772463038478,-500.0,0.00013168,2]
[407126792,1772463038489,-500.0,0.00013168,2]
[407126794,1772463038498,-500.0,0.00013168,2]
[407126796,1772463038508,-500.0,0.00013168,2]
[407126798,1772463038517,-500.0,0.00013168,2]
[407126801,1772463038527,-500.0,0.00013168,2]
[407126804,1772463038537,-500.0,0.00013168,2]
[407126806,1772463038546,-500.0,0.00013168,2]
[407126809,1772463038559,-500.0,0.00013168,2]
[407126811,1772463038573,-500.0,0.00013168,2]
[407126812,1772463038582,-500.0,0.00013168,2]
[407126813,1772463038591,-500.0,0.00013168,2]
[407126814,1772463038601,-500.0,0.00013168,2]
[407126815,1772463038611,-500.0,0.00013168,2]
[407126816,1772463038620,-500.0,0.00013168,2]
[407126817,1772463038629,-500.0,0.00013168,2]
[407126818,1772463038639,-500.0,0.00013168,2]
[407126819,1772463038649,-500.0,0.00013168,2]
[407126820,1772463038659,-500.0,0.00013168,2]
[407126821,1772463038669,-500.0,0.00013168,2]
[407126822,1772463038679,-500.0,0.00013168,2]
[407126823,1772463038689,-500.0,0.00013168,2]
[407126824,1772463038699,-421.14236744,0.00013168,2]
[407126825,1772463038708,-500.0,0.00013168,2]
[407126826,1772463038717,-500.0,0.00013168,2]
[407126827,1772463038727,-500.0,0.00013168,2]
[407126828,1772463038736,-500.0,0.00013168,2]
[407126829,1772463038745,-500.0,0.00013168,2]
[407126830,1772463038755,-500.0,0.00013168,2]
[407126831,1772463038764,-550.0,0.00013168,2]
[407126832,1772463038773,-500.0,0.00013168,2]
[407126833,1772463038783,-500.0,0.00013168,2]
[407126834,1772463038792,-500.0,0.00013169,2]
[407126835,1772463038801,-500.0,0.00013169,2]
[407126836,1772463038815,-500.0,0.00013169,2]
[407126837,1772463038825,-500.0,0.00013169,2]
[407126838,1772463038835,-500.0,0.00013169,2]
[407126839,1772463038845,-500.0,0.00013169,2]
[407126840,1772463038855,-3890.82424995,0.00013173,2]
[407126841,1772463038864,-151.0,0.00013272,2]
[407126842,1772463038873,-151.0,0.00013272,2]
[407126843,1772463038883,-500.0,0.00013273,2]
[407126844,1772463038891,-500.0,0.00013273,2]
[407126845,1772463038900,-500.0,0.00013273,2]
[407126846,1772463038910,-500.0,0.00013273,2]
[407126847,1772463038919,-500.0,0.00013273,2]
[407126848,1772463038941,-500.0,0.00013273,2]
[407126849,1772463038959,-500.0,0.00013273,2]
[407126850,1772463038979,-500.0,0.00013273,2]
[407126851,1772463039000,-500.0,0.00013273,2]
[407126852,1772463039017,-500.0,0.00013273,2]
[407126853,1772463039034,-213.6,0.00013273,2]
[407126854,1772463039052,-200.0,0.00013288,2]
[407126855,1772463039067,-420.0,0.00013295,2]
[407126856,1772463039084,-151.0,0.00013553,2]
[407126857,1772463039102,-156.25862782,0.00013553,2]
[407126858,1772463039124,-268.39235904,0.00013558,2]
[407126860,1772463039138,-7915.96198581,0.00013561,2]
[407126864,1772463039163,-59210.83578084,0.00013561,2]
[407127492,1772463045984,-300.0,0.0001343,2]
[407127493,1772463045993,-300.0,0.0001343,2]
[407127494,1772463046003,-300.0,0.0001343,2]
[407127495,1772463046012,-300.0,0.0001343,2]
[407127496,1772463046022,-448.34362256,0.00013561,2]
[407127497,1772463046031,-3079.72920419,0.00013561,2]
[407127498,1772463046040,-2976.28398,0.00013561,2]
[407127499,1772463046050,-644.99057478,0.00013592,2]
[407127500,1772463046059,-73.3089956,0.000136,2]
[407139057,1772463663173,-478.82850861,0.00012645,2]
[407139058,1772463663203,-601.0,0.00012773,2]
[407139059,1772463663232,-200.54929405,0.00012902,2]
[407139060,1772463663264,-150.0,0.00013002,2]
[407139061,1772463663285,-454.7864972,0.00013087,2]
[407139062,1772463663295,-24.04201141,0.00013166,2]
[407139063,1772463663307,-275.95798859,0.00013166,2]
[407139064,1772463663317,-325.04201141,0.00013167,2]
[407139065,1772463663333,-174.95798859,0.00013167,2]
[407139066,1772463663345,-25.59130546,0.00013167,2]
[407139067,1772463663361,-150.0,0.00013167,2]
[407139068,1772463663373,-324.40869454,0.00013167,2]
[407139069,1772463663383,-43.56538444,0.00013167,2]
[407139126,1772463731160,432.01715944,0.0001,2]
[407139131,1772463755273,524.54795434,0.0001,2]
[407139387,1772464232095,-2000.0,0.00012776,2]
[407139388,1772464232106,-601.0,0.00012776,2]
[407139389,1772464232117,-150.0,0.00013062,2]
[407139390,1772464232127,-329.0,0.00013269,2]
[407139391,1772464232137,-300.0,0.0001327,2]
[407139392,1772464232148,-300.0,0.0001327,2]
[407139393,1772464232159,-300.0,0.0001327,2]
[407139394,1772464232170,-300.0,0.0001327,2]
[407139395,1772464232181,-500.0,0.00013271,2]
[407139396,1772464232192,-500.0,0.00013271,2]
[407139397,1772464232202,-500.0,0.00013271,2]
[407139398,1772464232212,-500.0,0.00013271,2]
[407139399,1772464232223,-500.0,0.00013271,2]
[407139400,1772464232234,-500.0,0.00013271,2]
[407139401,1772464232244,-500.0,0.00013271,2]
[407139403,1772464232253,-500.0,0.00013271,2]
[407139405,1772464232264,-411.39414586,0.00013271,2]
[407139406,1772464232277,-500.0,0.00013271,2]
[407139407,1772464232288,-179.88032716,0.00013271,2]
[407139408,1772464232298,-500.0,0.00013271,2]
[407139409,1772464232312,-500.0,0.00013271,2]
[407139411,1772464232323,-376.21081187,0.00013271,2]
[407139413,1772464232333,-500.0,0.00013271,2]
[407139415,1772464232344,-500.0,0.00013271,2]
[407139417,1772464232355,-500.0,0.00013271,2]
[407139420,1772464232366,-497.12552483,0.00013271,2]
[407139422,1772464232376,-500.0,0.00013271,2]
[407139423,1772464232386,-500.0,0.00013271,2]
[407139426,1772464232396,-500.0,0.00013271,2]
[407139428,1772464232407,-500.0,0.00013271,2]
[407139430,1772464232417,-500.0,0.00013271,2]
[407139432,1772464232427,-500.0,0.00013271,2]
[407139434,1772464232436,-197.11423675,0.00013271,2]
[407139435,1772464232446,-500.0,0.00013271,2]
[407139437,1772464232456,-500.0,0.00013271,2]
[407139439,1772464232466,-500.0,0.00013271,2]
[407139441,1772464232476,-500.0,0.00013271,2]
[407139443,1772464232486,-500.0,0.00013271,2]
[407139445,1772464232496,-500.0,0.00013271,2]
[407139447,1772464232506,-628.30149787,0.00013271,2]
[407139449,1772464232516,-500.0,0.00013271,2]
[407139450,1772464232530,-500.0,0.00013271,2]
[407139451,1772464232540,-500.0,0.00013271,2]
[407139452,1772464232550,-500.0,0.00013271,2]
[407139454,1772464232561,-500.0,0.00013271,2]
[407139455,1772464232572,-500.0,0.00013271,2]
[407139456,1772464232582,-500.0,0.00013271,2]
[407139457,1772464232592,-500.0,0.00013271,2]
[407139459,1772464232602,-500.0,0.00013271,2]
[407139460,1772464232613,-500.0,0.00013271,2]
[407139461,1772464232622,-500.0,0.00013271,2]
[407139463,1772464232632,-500.0,0.00013271,2]
[407139465,1772464232642,-500.0,0.00013271,2]
[407139466,1772464232652,-500.0,0.00013271,2]
[407139468,1772464232662,-500.0,0.00013271,2]
[407139470,1772464232672,-500.0,0.00013271,2]
[407139472,1772464232682,-500.0,0.00013271,2]
[407139474,1772464232692,-500.0,0.00013271,2]
[407139476,1772464232702,-390.43003989,0.00013271,2]
[407139478,1772464232716,-109.56996011,0.00013271,2]
[407139480,1772464232727,-500.0,0.00013271,2]
[407139481,1772464232739,-500.0,0.00013271,2]
[407139483,1772464232749,-500.0,0.00013271,2]
[407139484,1772464232760,-500.0,0.00013273,2]
[407139485,1772464232773,-500.0,0.00013273,2]
[407139486,1772464232783,-157.40819191,0.00013273,2]
[407139487,1772464232811,-342.59180809,0.00013273,2]
[407139488,1772464232821,-136.23670052,0.00013273,2]
[407139974,1772464243512,-337.01,0.0001314,2]
[407139975,1772464243521,-289.59,0.00013273,2]
[407139976,1772464243535,-74.17329948,0.00013273,2]
[407139977,1772464243544,-500.0,0.00013273,2]
[407139978,1772464243553,-500.0,0.00013273,2]
[407139979,1772464243562,-155.82670052,0.00013273,2]
[407139980,1772464243581,-344.17329948,0.00013273,2]
[407139981,1772464243590,-500.0,0.00013273,2]
[407139982,1772464243599,-500.0,0.00013273,2]
[407139983,1772464243609,-250.15249074,0.00013291,2]
[407139984,1772464243618,-300.0,0.0001343,2]
[407139986,1772464243627,-300.0,0.0001343,2]
[407139988,1772464243636,-300.0,0.0001343,2]
[407139990,1772464243645,-300.0,0.0001343,2]
[407139992,1772464243654,-300.0,0.0001343,2]
[407139994,1772464243664,-300.0,0.0001343,2]
[407139996,1772464243673,-300.0,0.0001343,2]
[407139997,1772464243684,-300.0,0.0001343,2]
[407139999,1772464243694,-300.0,0.0001343,2]
[407140002,1772464243704,-300.0,0.0001343,2]
[407140005,1772464243713,-300.0,0.0001343,2]
[407140007,1772464243722,-300.0,0.0001343,2]
[407140010,1772464243739,-300.0,0.0001343,2]
[407140013,1772464243759,-300.0,0.0001343,2]
[407140016,1772464243771,-300.0,0.0001343,2]
[407140018,1772464243784,-600.0,0.0001343,2]
[407140021,1772464243793,-891.16174851,0.000135,2]
[407140024,1772464243802,-1979.94442964,0.000135,2]
[407140026,1772464243813,-1593.08968703,0.000135,2]
[407140028,1772464243822,-2250.20528964,0.000135,2]
[407140313,1772464246760,-833.43488823,0.000135,2]
[407140315,1772464246771,-1688.83332933,0.000135,2]
[407140318,1772464246788,-1049.67271007,0.000135,2]
[407140320,1772464246797,-982.64750315,0.000135,2]
[407140322,1772464246806,-912.08556449,0.000135,2]
[407140324,1772464246817,-1516.97192416,0.000135,2]
[407140326,1772464246825,-225.02229813,0.00013532,2]
[407140330,1772464246856,-136.07433782,0.00013532,2]
[407140332,1772464246866,-187.87465133,0.00013559,2]
[407140334,1772464246875,-160.0246781,0.0001356,2]
[407157906,1772464459172,-150.0,0.00014,20]
[407158001,1772464461178,-150.0,0.00014,20]
[407158011,1772464462574,-150.0,0.00014,20]
[407158012,1772464464098,-150.0,0.00014,20]
[407158013,1772464465589,-150.0,0.00014,20]
[407158056,1772464520759,3795.0,0.000158,120]
[407158058,1772464568206,-250.0,0.00014,20]
[407158059,1772464637261,-150.0,0.00014,20]
[407158060,1772464638069,-150.0,0.00014,20]
[407158061,1772464639040,-150.0,0.00014,20]
[407158062,1772464639861,-150.0,0.00014,20]
[407158063,1772464640799,-150.0,0.00014,20]
[407158064,1772464642098,-150.0,0.00014,20]
[407158065,1772464643025,-150.0,0.00014,20]
[407158066,1772464643911,-150.0,0.00014,20]
[407158067,1772464644820,-150.0,0.00014,20]
[407158068,1772464646008,-150.0,0.00014,20]
[407158069,1772464647162,-150.0,0.00014,20]
[407158070,1772464648141,-150.0,0.00014,20]
[407158071,1772464723643,-211.0,0.00014,20]
[407158072,1772464876810,168.9333,5.875e-05,2]
[407158094,1772465003558,2725.75,0.0001001,2]
[407158095,1772465067050,266.08596024,0.0001001,2]
[407158096,1772465080657,5451.48,0.0001001,2]
[407158098,1772465109708,2725.74,0.0001001,2]
[407158100,1772465230936,5000.0,0.0001001,2]
[407158102,1772465339193,84484.0,0.0001,2]
[407158122,1772465432328,-781.10612445,0.00010197,2]
[407158124,1772465432339,-160.11252589,0.00010197,2]
[407158126,1772465432351,-402.88747411,0.00010197,2]
[407158128,1772465432361,-150.0,0.00010249,2]
[407158130,1772465432371,-213.87361771,0.000103,2]
[407158133,1772465432384,-29.41638229,0.000103,2]
[407158135,1772465432394,-153.16957801,0.00011915,2]
[407158137,1772465432403,-1426.81163642,0.00012,2]
[407158139,1772465432415,-410.71337545,0.00012,2]
[407158142,1772465432438,-304.56430337,0.00012,2]
[407158144,1772465432448,-89.91320241,0.00012108,2]
[407158146,1772465432466,-210.08679759,0.00012108,2]
[407158148,1772465432477,-285.0,0.00012108,2]
[407158149,1772465432488,-180.33684953,0.00012109,2]
[407158663,1772465438778,-733.88092605,0.00012109,2]
[407158775,1772465442049,-9085.78222442,0.00012109,2]
[407158777,1772465442059,-177.0,0.00012249,2]
[407158779,1772465442069,-500.0,0.00013273,2]
[407158781,1772465442079,-500.0,0.00013273,2]
[407158783,1772465442090,-448.99688877,0.00013273,2]
[407158785,1772465442102,-500.0,0.00013273,2]
[407158787,1772465442112,-500.0,0.00013273,2]
[407158790,1772465442122,-500.0,0.00013273,2]
[407158792,1772465442132,-244.12380408,0.00013499,2]
[407158794,1772465442142,-500.0,0.00013499,2]
[407158796,1772465442152,-500.0,0.00013499,2]
[407158798,1772465442163,-347.58905532,0.00013499,2]
[407158800,1772465442173,-500.0,0.00013499,2]
[407158802,1772465442183,-388.56950276,0.00013499,2]
[407158804,1772465442192,-9749.43820522,0.000135,2]
[407158806,1772465442201,-10949.36798078,0.000135,2]
[407158808,1772465442212,-13127.34690998,0.000135,2]
[407158810,1772465442221,-12149.29775642,0.000135,2]
[407158812,1772465442234,-5501.67778822,0.000135,2]
[407158814,1772465442243,-990.36264407,0.000135,2]
[407158816,1772465442253,-970.59485376,0.000135,2]
[407158818,1772465442262,-2976.28398,0.0001356,2]
[407158820,1772465442272,-151.0,0.0001356,2]
[407158822,1772465442282,-205.45958447,0.0001356,2]
[407158824,1772465442291,-3528.07282675,0.00013561,2]
[407158826,1772465442301,-954.7810044,0.000136,2]
[407158828,1772465442311,-5000.0,0.000136,3]
[407158829,1772465442320,-160.0,0.000136,2]
[407158831,1772465442329,-160.0,0.000136,2]
[407158832,1772465442339,-300.0,0.00013673,2]
[407158834,1772465442348,-9000.0,0.00013697,2]
[407158836,1772465442357,-9000.0,0.00013697,2]
[407158837,1772465442366,-9000.0,0.00013697,2]
[407158838,1772465442374,-9000.0,0.00013697,2]
[407158839,1772465442383,-1879.01189522,0.00013697,2]
[407158847,1772465442541,-180.0,0.00013698,2]
[407158849,1772465442551,-171.23688351,0.00013698,2]
[407158851,1772465442561,-180.0,0.00013698,2]
[407158853,1772465442570,-311.73163691,0.00013698,2]
[407158855,1772465442580,-781.755667,0.00013698,2]
[407158857,1772465442589,-500.0,0.00013698,2]
[407158859,1772465442599,-447.7564208,0.00013698,2]
[407158861,1772465442608,-500.0,0.00013698,2]
[407158863,1772465442617,-500.0,0.00013698,2]
[407158865,1772465442626,-500.0,0.00013698,2]
[407158867,1772465442636,-500.0,0.00013698,2]
[407158869,1772465442645,-500.0,0.00013698,2]
[407158871,1772465442654,-500.0,0.00013698,2]
[407158873,1772465442664,-500.0,0.00013698,2]
[407158875,1772465442673,-500.0,0.00013698,2]
[407158877,1772465442683,-2747.71,0.00013698,2]
[407158879,1772465442693,-734.12,0.00013698,2]
[407158881,1772465442702,-500.0,0.00013698,2]
[407158883,1772465442711,-500.0,0.00013698,2]
[407158885,1772465442721,-500.0,0.00013698,2]
[407158887,1772465442731,-500.0,0.00013698,2]
[407158888,1772465442740,-500.0,0.00013698,2]
[407158890,1772465442750,-600.0,0.00013698,2]
[407158893,1772465442760,-500.0,0.00013698,2]
[407158895,1772465442770,-725.51,0.00013698,2]
[407158897,1772465442780,-732.86,0.00013698,2]
[407158899,1772465442789,-500.0,0.00013698,2]
[407158900,1772465442798,-1157.31,0.00013698,2]
[407158903,1772465442807,-500.0,0.00013698,2]
[407158904,1772465442817,-500.0,0.00013698,2]
[407158906,1772465442826,-500.0,0.00013698,2]
[407158908,1772465442835,-1108.22,0.00013698,2]
[407158910,1772465442845,-500.0,0.00013698,2]
[407158912,1772465442855,-1226.4,0.00013698,2]
[407158914,1772465442864,-772.27,0.00013698,2]
[407158918,1772465442874,-500.0,0.00013698,2]
[407158919,1772465442883,-500.0,0.00013698,2]
[407158921,1772465442892,-528.49,0.00013698,2]
[407158924,1772465442901,-507.35305743,0.00013698,2]
[407158926,1772465442911,-549.07265279,0.00013698,2]
[407158929,1772465442920,-500.0,0.00013698,2]
[407158931,1772465442929,-265.80541573,0.00013698,2]
[407158933,1772465442938,-854.99,0.00013698,2]
[407158935,1772465442948,-500.0,0.00013698,2]
[407158938,1772465442958,-1143.15,0.00013698,2]
[407158939,1772465442968,-1071.42,0.00013698,2]
[407158941,1772465442980,-620.66,0.00013698,2]
[407158943,1772465442990,-500.0,0.00013698,2]
[407158945,1772465442999,-500.0,0.00013698,2]
[407158948,1772465443009,-500.0,0.00013698,2]
[407158949,1772465443019,-500.54298475,0.00013698,2]
[407158951,1772465443029,-553.00714565,0.00013698,2]
[407158954,1772465443039,-585.36140524,0.00013698,2]
[407158955,1772465443049,-548.03,0.00013698,2]
[407158957,1772465443058,-519.22403364,0.00013698,2]
[407158960,1772465443068,-1000.0,0.00013698,2]
[407158962,1772465443078,-632.35721658,0.00013698,2]
[407158965,1772465443089,-500.0,0.00013698,2]
[407158969,1772465443102,-500.0,0.00013698,2]
[407158974,1772465443111,-500.0,0.00013698,2]
[407158979,1772465443120,-500.0,0.00013698,2]
[407158983,1772465443131,-500.0,0.00013698,2]
[407158987,1772465443141,-1248.44,0.00013698,2]
[407158991,1772465443151,-500.0,0.00013698,2]
[407158996,1772465443162,-313.02771926,0.00013698,2]
[407159000,1772465443173,-543.07,0.00013698,2]
[407159003,1772465443182,-546.9,0.00013698,2]
[407159007,1772465443191,-500.57779116,0.00013698,2]
[407159011,1772465443201,-527.16,0.00013698,2]
[407159015,1772465443210,-500.0,0.00013698,2]
[407159019,1772465443219,-536.58,0.00013698,2]
[407159022,1772465443230,-500.0,0.00013698,2]
[407159027,1772465443240,-187.18584781,0.00013698,2]
[407159030,1772465443250,-500.0,0.00013698,2]
[407159034,1772465443260,-556.90449919,0.00013698,2]
[407159037,1772465443270,-500.0,0.00013698,2]
[407159040,1772465443280,-500.0,0.00013698,2]
[407159043,1772465443289,-500.0,0.00013698,2]
[407159046,1772465443299,-655.9,0.00013698,2]
[407159049,1772465443309,-500.0,0.00013698,2]
[407159052,1772465443318,-500.0,0.00013698,2]
[407159055,1772465443327,-770.69,0.00013698,2]
[407159058,1772465443337,-500.0,0.00013698,2]
[407159060,1772465443346,-30851.37956452,0.00013698,2]
[407159062,1772465443357,-500.0,0.00013698,2]
[407159064,1772465443367,-1474.53,0.00013698,2]
[407159066,1772465443376,-1848.24,0.00013698,2]
[407159068,1772465443386,-517.01,0.00013698,2]
[407159070,1772465443395,-482.16091871,0.00013698,2]
[407159142,1772465444070,-17.83908129,0.00013698,2]
[407159144,1772465444079,-500.0,0.00013698,2]
[407159146,1772465444091,-500.0,0.00013698,2]
[407159148,1772465444102,-500.0,0.00013698,2]
[407159150,1772465444112,-500.0,0.00013698,2]
[407159152,1772465444121,-2412.75,0.00013698,2]
[407159154,1772465444132,-500.0,0.00013698,2]
[407159156,1772465444141,-500.0,0.00013698,2]
[407159158,1772465444152,-1064.7,0.00013698,2]
[407159160,1772465444162,-243.79930015,0.00013698,2]
[407159405,1772465446809,-256.20069985,0.00013698,2]
[407159407,1772465446819,-500.0,0.00013698,2]
[407159409,1772465446827,-500.0,0.00013698,2]
[407159411,1772465446837,-500.0,0.00013698,2]
[407159413,1772465446846,-2828.54,0.00013698,2]
[407159415,1772465446855,-1134.69,0.00013698,2]
[407159417,1772465446865,-500.0,0.00013698,2]
[407159419,1772465446874,-500.0,0.00013698,2]
[407159421,1772465446883,-143.2597504,0.00013698,2]
[407160884,1772465462699,-1359.28713245,0.00013425,2]
[407167837,1772466008337,153.06,9.5e-05,2]
[407167849,1772466187034,262.71,0.0001,11]
[407167850,1772466218778,5000.0,0.0001001,2]
[407167852,1772466240824,5000.0,0.0001001,2]
[407167853,1772466249493,2599.59519062,0.0001001,2]
[407167854,1772466257506,1096.68474537,0.0001001,2]
[407167855,1772466273874,5000.0,0.0001001,2]
[407167861,1772466460478,5000.0,0.0001001,2]
[407167917,1772466633047,-300.58662455,0.00010116,2]
[407167922,1772466633107,-957.53465355,0.00010116,2]
[407167924,1772466633119,-512.4228219,0.00010116,2]
[407167962,1772466640503,-3229.4559,0.00010116,2]
[407167964,1772466640522,-562.0,0.00010116,2]
[407167965,1772466640534,-150.0,0.00010167,2]
[407167966,1772466640545,-500.0,0.000108,2]
[407167967,1772466640555,-177.0,0.00012167,2]
[407167968,1772466640565,-308.2875936,0.00013101,2]
[407167969,1772466640576,-1200.0,0.00013268,2]
[407167970,1772466640587,-500.0,0.00013269,2]
[407167971,1772466640597,-513.62291492,0.00013269,2]
[407167972,1772466640607,-259.83046816,0.00013269,2]
[407167973,1772466640618,-500.0,0.00013269,2]
[407167974,1772466640628,-500.0,0.00013269,2]
[407167975,1772466640640,-500.0,0.00013269,2]
[407167976,1772466640650,-500.0,0.00013269,2]
[407167977,1772466640660,-500.0,0.00013269,2]
[407167978,1772466640671,-589.210878,0.00013269,2]
[407167979,1772466640681,-179.94667452,0.00013269,2]
[407167980,1772466640691,-500.0,0.00013269,2]
[407167981,1772466640702,-409.28743168,0.00013269,2]
[407167982,1772466640712,-500.0,0.00013269,2]
[407167983,1772466640721,-500.0,0.00013269,2]
[407167986,1772466640732,-20388.82192498,0.0001327,2]
[407167989,1772466640742,-500.0,0.00013273,2]
[407167991,1772466640752,-500.0,0.00013273,2]
[407167992,1772466640762,-500.0,0.00013273,2]
[407167993,1772466640773,-500.0,0.00013273,2]
[407167994,1772466640784,-1923.1470267,0.000135,2]
[407167995,1772466640794,-4125.67267337,0.000135,2]
[407167996,1772466640805,-3728.10540603,0.000135,2]
[407167997,1772466640815,-4449.72524478,0.000135,2]
[407167998,1772466640826,-974.646644,0.000135,2]
[407167999,1772466640837,-1174.47015681,0.000135,2]
[407168000,1772466640847,-966.82427259,0.000135,2]
[407168001,1772466640857,-1095.14115554,0.000135,2]
[407168002,1772466640868,-600.0,0.00013536,2]
[407168003,1772466640878,-723.99002329,0.00013561,2]
[407168004,1772466640889,-151.0,0.000136,2]
[407168005,1772466640899,-300.0,0.00013673,2]
[407168006,1772466640909,-2203.4386036,0.00013692,2]
[407168007,1772466640920,-500.0,0.00013698,2]
[407168008,1772466640930,-500.0,0.00013698,2]
[407168009,1772466640940,-500.0,0.00013698,2]
[407168010,1772466640952,-500.0,0.00013698,2]
[407168011,1772466640962,-250.25840797,0.00013698,2]
[407168012,1772466640973,-500.0,0.00013698,2]
[407168013,1772466640983,-500.0,0.00013698,2]
[407168014,1772466640993,-500.0,0.00013698,2]
[407168015,1772466641004,-500.0,0.00013698,2]
[407168016,1772466641018,-500.0,0.00013698,2]
[407168017,1772466641030,-1263.9,0.00013698,2]
[407168018,1772466641040,-500.0,0.00013698,2]
[407168019,1772466641051,-500.0,0.00013698,2]
[407168020,1772466641062,-500.0,0.00013698,2]
[407168021,1772466641072,-500.0,0.00013698,2]
[407168022,1772466641083,-500.0,0.00013698,2]
[407168023,1772466641094,-500.0,0.00013698,2]
[407168024,1772466641105,-500.0,0.00013698,2]
[407168025,1772466641115,-500.0,0.00013698,2]
[407168026,1772466641125,-893.88,0.00013698,2]
[407168027,1772466641136,-683.86,0.00013698,2]
[407168028,1772466641147,-2045.94,0.00013698,2]
[407168029,1772466641158,-500.0,0.00013698,2]
[407168030,1772466641168,-641.1,0.00013698,2]
[407168031,1772466641178,-500.0,0.00013698,2]
[407168032,1772466641188,-517.06,0.00013698,2]
[407168033,1772466641199,-500.0,0.00013698,2]
[407168034,1772466641209,-500.0,0.00013698,2]
[407168035,1772466641219,-720.98,0.00013698,2]
[407168036,1772466641230,-500.0,0.00013698,2]
[407168037,1772466641240,-637.63009845,0.00013698,2]
[407168038,1772466641250,-500.0,0.00013698,2]
[407168039,1772466641261,-500.0,0.00013698,2]
[407168040,1772466641275,-618.39,0.00013698,2]
[407168041,1772466641285,-870.8,0.00013698,2]
[407168042,1772466641295,-500.0,0.00013698,2]
[407168043,1772466641306,-500.0,0.00013698,2]
[407168044,1772466641318,-500.0,0.00013698,2]
[407168045,1772466641328,-500.0,0.00013698,2]
[407168046,1772466641341,-500.0,0.00013698,2]
[407168047,1772466641351,-732.74,0.00013698,2]
[407168048,1772466641362,-522.68337661,0.00013698,2]
[407168049,1772466641372,-500.0,0.00013698,2]
[407168050,1772466641383,-500.0,0.00013698,2]
[407168051,1772466641397,-657.84,0.00013698,2]
[407168052,1772466641407,-500.0,0.00013698,2]
[407168053,1772466641418,-1375.01,0.00013698,2]
[407168054,1772466641430,-512.39036301,0.00013698,2]
[407168055,1772466641441,-500.0,0.00013698,2]
[407168056,1772466641457,-657.71,0.00013698,2]
[407168057,1772466641468,-500.0,0.00013698,2]
[407168058,1772466641479,-500.0,0.00013698,2]
[407168059,1772466641490,-500.0,0.00013698,2]
[407168060,1772466641501,-520.93,0.00013698,2]
[407168061,1772466641512,-551.64,0.00013698,2]
[407168062,1772466641522,-2379.95,0.00013698,2]
[407168063,1772466641536,-1558.89,0.00013698,2]
[407168064,1772466641547,-500.0,0.00013698,2]
[407168065,1772466641557,-1148.67,0.00013698,2]
[407168066,1772466641568,-1041.44,0.00013698,2]
[407168067,1772466641579,-1742.42,0.00013698,2]
[407168068,1772466641589,-500.0,0.00013698,2]